bitfinex-derivatives/quotes_ETHF0:USTF0_20250709
["timestamp","ask_amount","ask_price","bid_price","bid_amount"]
[1752098913090,1.36,2764.9,2764.8,5.84038639]
[1752098913290,1.36,2764.9,2764.8,2.63258639]
[1752098913490,2.67550172,2764.9,2764.8,2.63258639]
[1752098914788,2.67550172,2764.9,2764.8,3.91338639]
[1752098915292,1.95167566,2764.9,2764.8,3.91338639]
[1752098915890,2.67477566,2764.9,2764.8,3.91338639]
[1752098916088,0.6369,2764.9,2764.8,4.90208639]
[1752098916290,0.6369,2764.9,2764.8,3.91338639]
[1752098916592,1.36,2764.9,2764.8,3.39762]
[1752098916791,2.67489097,2764.9,2764.8,3.91455887]
[1752098917294,1.95179097,2764.9,2764.8,3.91455887]
[1752098917883,1.95179097,2764.9,2764.8,4.82535887]
[1752098918087,1.31489097,2764.9,2764.8,4.82535887]
[1752098918286,3.2078,2765.5,2765.3,0.72297]
[1752098918489,1.35988,2765.4,2765.3,1.33917]
[1752098918689,1.35988,2765.4,2765.3,1.85610147]
[1752098921896,2.28948,2765.4,2765.3,0.51693147]
[1752098922091,0.72314,2764.8,2764.7,0.72311]
[1752098922394,1.38944,2764.8,2764.7,1.34781]
[1752098922594,0.6663,2764.8,2764.7,1.34781]
[1752098922994,1.38942,2764.8,2764.7,1.34781]
[1752098923195,0.72323,2764.4,2764.3,3.22378802]
[1752098923399,0.7437,2764.7,2764.3,2.43282]
[1752098923592,1.46688,2764.7,2764.6,0.72317]
[1752098923792,2.13318,2764.7,2764.6,0.72317]
[1752098923988,2.13318,2764.7,2764.6,1.34787]
[1752098924191,0.7232,2764.5,2764.4,1.9854]
[1752098924387,1.3895,2764.5,2764.4,2.6101]
[1752098924691,1.3895,2764.5,2764.4,1.8869]
[1752098924897,1.3895,2764.5,2764.4,1.2622]
[1752098925196,1.3895,2764.5,2764.4,1.8869]
[1752098925401,1.3895,2764.5,2764.4,2.61013]
[1752098927294,0.7232,2764.6,2764.5,0.72317]
[1752098927489,1.3895,2764.6,2764.5,2.63687]
[1752098927692,3.93095,2764.8,2764.7,0.72315]
[1752098927893,4.59722,2764.8,2764.7,3.17078871]
[1752098928592,0.7231,2765.0,2764.9,0.72306]
[1752098928794,3.2078,2765.2,2765.1,0.72304]
[1752098928998,1.38934,2765.2,2765.1,1.34774]
[1752098929597,1.38934,2765.2,2765.1,2.12374]
[1752098930289,2.69666302,2765.2,2765.1,2.12374]
[1752098930492,2.69666302,2765.2,2765.1,1.4007]
[1752098930798,2.69666302,2765.2,2765.1,2.12374]
[1752098931395,2.69666302,2765.2,2765.1,1.4007]
[1752098931694,2.90322302,2765.2,2764.9,0.72308]
[1752098931892,0.72307,2765.0,2764.9,0.72308]
[1752098932091,2.69669302,2765.0,2764.9,1.34778]
[1752098932897,2.69669302,2765.0,2764.9,0.72308]
[1752098933195,2.69669302,2765.0,2764.9,1.34778]
[1752098933799,2.69669302,2765.0,2764.9,2.64068]
[1752098934994,2.03039302,2765.0,2764.9,2.64068]
[1752098935194,2.69669302,2765.0,2764.9,2.64068]
[1752098936594,2.69669302,2765.0,2764.9,1.9176]
[1752098936797,2.69669302,2765.0,2764.9,0.6247]
[1752098936999,2.69669302,2765.0,2764.9,1.3478]
[1752098937200,3.62629302,2765.0,2764.9,0.6247]
[1752098937597,4.71096302,2765.0,2764.6,2.81485]
[1752098937896,0.72315,2764.7,2764.6,2.81485]
[1752098938193,2.71779173,2764.7,2764.6,3.43955]
[1752098938994,2.05149173,2764.7,2764.6,3.43955]
[1752098939501,2.71779173,2764.7,2764.6,3.43955]
[1752098940199,1.32834173,2764.7,2764.6,4.35168871]
[1752098940500,1.32834173,2764.7,2764.6,5.26248871]
[1752098942091,0.72311,2764.9,2764.8,0.72312]
[1752098942290,0.72311,2764.9,2764.8,1.34782]
[1752098942496,2.71749704,2764.9,2764.8,1.86164025]
[1752098943099,2.71749704,2764.9,2764.8,1.86052623]
[1752098944896,2.71749704,2764.9,2764.8,1.23582623]
[1752098945399,3.64709704,2764.9,2764.8,0.51270623]
[1752098945996,0.72312,2764.8,2764.7,0.72313]
[1752098946197,2.05120704,2764.8,2764.7,1.23591985]
[1752098946592,2.05120704,2764.8,2764.7,1.86061985]
[1752098946901,1.32808704,2764.8,2764.7,1.86061985]
[1752098948501,2.71750704,2764.8,2764.7,1.86061985]
[1752098948703,2.05120704,2764.8,2764.7,1.86061985]
[1752098948904,1.32808704,2764.8,2764.7,1.86061985]
[1752098949104,1.32808704,2764.8,2764.7,1.86085943]
[1752098949300,1.95138704,2764.8,2764.7,1.86085943]
[1752098949801,1.32808704,2764.8,2764.7,1.86085943]
[1752098949997,1.95138704,2764.8,2764.7,1.86085943]
[1752098950201,2.67450704,2764.8,2764.7,1.86085943]
[1752098951406,1.95138704,2764.8,2764.7,1.86085943]
[1752098954603,1.95138704,2764.8,2764.7,2.84645943]
[1752098954809,1.95138704,2764.8,2764.7,2.33343]
[1752098955009,1.95138704,2764.8,2764.7,2.84669466]
[1752098956009,1.32808704,2764.8,2764.7,2.84669466]
[1752098956211,1.68173,2765.2,2765.1,0.72304]
[1752098956406,3.63453336,2765.2,2765.1,1.23630466]
[1752098957308,3.63453336,2765.2,2765.1,1.86530466]
[1752098958112,1.95280336,2765.2,2765.1,1.86530466]
[1752098958306,2.67582336,2765.2,2765.1,1.86530466]
[1752098959112,3.63452336,2765.2,2765.1,1.86530466]
[1752098959312,3.25113776,2765.4,2765.3,0.72299]
[1752098959616,3.25113776,2765.6,2765.5,0.72294]
[1752098959808,3.25113776,2765.6,2765.5,1.23620466]
[1752098960009,6.45893776,2765.7,2765.6,0.72291]
[1752098960210,7.08223776,2765.7,2765.6,2.55307466]
[1752098960712,3.25113776,2765.7,2765.6,2.55307466]
[1752098961608,3.2078,2766.0,2765.9,0.72283]
[1752098961815,3.2078,2766.0,2765.9,1.23609466]
[1752098962009,3.8311,2766.0,2765.9,1.23609466]
[1752098963808,0.6233,2766.0,2765.9,2.14823337]
[1752098964515,3.2078,2766.4,2766.3,0.72273]
[1752098964710,4.5538,2766.4,2766.3,1.86499466]
[1752098964904,3.2078,2766.4,2766.3,1.86499466]
[1752098965311,3.2078,2766.4,2766.3,2.77855732]
[1752098965512,3.2078,2766.4,2766.3,4.01205732]
[1752098965709,3.28223769,2767.1,2767.0,0.72255]
[1752098966007,14.0402525,2769.0,2768.1,0.72226]
[1752098966311,14.0402525,2769.0,2768.2,1.80559]
[1752098966512,0.72205,2768.9,2768.8,0.91213871]
[1752098966712,0.72205,2768.9,2768.8,1.63421871]
[1752098966713,0.6233,2768.9,2768.8,1.63421871]
[1752098967410,0.6233,2768.9,2768.6,4.11993871]
[1752098967607,1.34537,2768.9,2768.7,0.7221]
[1752098967816,1.34537,2768.9,2768.6,0.91213871]
[1752098967817,0.01001593,2769.1,2768.6,0.91213871]
[1752098968012,0.01001593,2769.1,2768.9,0.91213871]
[1752098968318,1.582,2769.0,2768.9,0.72203]
[1752098968617,2.30403,2769.0,2768.8,0.72206]
[1752098968815,0.72205,2768.9,2768.6,0.72211]
[1752098969015,0.72208,2768.8,2768.7,1.06540022]
[1752098969221,3.2078,2768.8,2768.7,1.06540022]
[1752098969522,4.55318,2768.8,2768.7,1.69440022]
[1752098969708,2.30408,2768.8,2768.7,1.06431512]
[1752098969915,5.51188,2768.8,2768.7,1.06431512]
[1752098970419,2.30408,2768.8,2768.7,0.53864502]
[1752098970619,2.30408,2768.8,2768.7,1.06249385]
[1752098971120,7.30408,2768.8,2768.7,0.53864502]
[1752098971314,1.582,2768.8,2768.7,1.3511]
[1752098971517,0.6233,2768.8,2768.7,1.3511]
[1752098971816,1.34538,2768.8,2768.7,0.629]
[1752098972016,1.34538,2768.8,2768.5,2.0183]
[1752098972017,0.6233,2768.8,2768.5,2.0183]
[1752098972215,0.7221,2768.7,2768.6,1.0603494]
[1752098972412,0.72219,2768.4,2768.1,0.72225]
[1752098972609,0.7222,2768.4,2768.2,1.80158941]
[1752098972821,0.7222,2768.4,2768.3,1.70835941]
[1752098973112,0.7222,2768.4,2768.3,1.07935941]
[1752098973312,0.7222,2768.4,2767.9,0.9856]
[1752098973313,0.72229,2768.0,2767.9,0.9856]
[1752098973516,5.05998363,2768.0,2767.2,2.38578991]
[1752098973818,0.72244,2767.4,2767.3,1.5612559]
[1752098974019,3.93024,2767.4,2767.3,1.5612559]
[1752098974218,3.93024,2767.4,2766.6,0.7274]
[1752098974219,0.72263,2766.7,2766.6,1.60378991]
[1752098974420,0.72263,2766.7,2766.6,1.56663261]
[1752098974619,1.68133,2766.7,2766.6,1.56663261]
[1752098975319,3.2078,2767.0,2766.6,1.56663261]
[1752098975620,0.72257,2767.0,2766.8,0.72259]
[1752098975929,0.9587,2767.1,2766.9,3.16944416]
[1752098976121,3.2078,2767.4,2766.9,3.16944416]
[1752098976122,0.72252,2767.2,2767.0,2.28820425]
[1752098976316,0.72252,2767.1,2767.0,0.72255]
[1752098976823,0.72252,2767.1,2766.9,0.72256]
[1752098977024,0.72252,2767.1,2767.0,0.72255]
[1752098977920,0.72255,2767.0,2766.9,0.72256]
[1752098978122,0.72255,2767.0,2766.9,2.28691159]
[1752098978423,1.42201459,2767.0,2766.9,2.28691159]
[1752098978619,1.42201459,2767.0,2766.9,1.56435159]
[1752098978924,1.42201459,2767.0,2766.9,0.72257]
[1752098979114,0.9344,2767.0,2766.8,0.72258]
[1752098979320,0.72257,2766.9,2766.8,0.72258]
[1752098979522,0.37016163,2766.9,2766.8,0.72258]
[1752098980121,0.99346163,2766.9,2766.8,0.72258]
[1752098980322,0.99346163,2766.9,2766.8,1.34298]
[1752098980524,0.99346163,2766.9,2766.8,0.72258]
[1752098980721,0.99346163,2766.9,2766.8,1.34298]
[1752098981115,1.5577,2766.9,2766.6,3.2078]
[1752098981318,0.72263,2766.7,2766.6,3.2078]
[1752098981521,2.012,2767.2,2766.6,4.55085]
[1752098981823,3.61141,2768.1,2766.6,4.55085]
[1752098981824,0.94323663,2769.2,2767.9,3.2078]
[1752098982117,0.73202593,2769.1,2768.7,3.2078]
[1752098982319,0.01001593,2769.1,2768.9,0.72205]
[1752098982515,0.01001593,2769.1,2769.0,0.72203]
[1752098982724,0.73201593,2769.1,2769.0,3.2078]
[1752098982924,0.01001593,2769.1,2769.0,3.92983]
[1752098985423,0.01001593,2769.1,2769.0,4.97597309]
[1752098987325,0.01001593,2769.1,2769.0,4.99166371]
[1752098989223,0.01001593,2769.1,2769.0,5.93606371]
[1752098989626,0.01001593,2769.1,2769.0,4.99166371]
[1752098991119,2.2393348,2771.6,2771.5,0.72137]
[1752098991322,4.28086428,2773.0,2772.7,0.72106]
[1752098991519,23.78790738,2773.7,2773.2,1.80234]
[1752098991520,17.28031077,2773.7,2773.2,1.80234]
[1752098991717,1.2037,2774.1,2773.6,3.2078]
[1752098991916,3.39669164,2773.7,2773.5,3.2078]
[1752098992117,3.2078,2773.6,2772.9,3.2078]
[1752098992318,3.2078,2773.6,2773.0,1.96919288]
[1752098992319,0.72094,2773.2,2773.0,1.96919288]
[1752098992518,3.2078,2773.3,2772.6,3.2078]
[1752098992519,3.2078,2773.3,2773.1,1.96919288]
[1752098992720,0.72101,2772.9,2772.8,3.22378802]
[1752098992919,3.2078,2772.9,2772.8,1.94196374]
[1752098993122,5.0,2772.9,2772.8,1.57163302]
[1752098993326,5.0,2772.9,2771.6,0.36409213]
[1752098993327,4.40966222,2772.2,2771.6,0.36409213]
[1752098993521,7.25337009,2771.7,2770.7,3.2078]
[1752098993724,1.8049,2771.0,2770.8,1.45008321]
[1752098993919,1.8049,2771.1,2770.9,1.833147]
[1752098994127,3.2078,2771.7,2771.0,1.111637]
[1752098994319,2.24067009,2771.6,2771.1,5.2943945]
[1752098994518,0.72143,2771.3,2771.2,1.111637]
[1752098994719,4.86363,2771.3,2771.2,1.111637]
[1752098994924,11.38287009,2771.3,2770.3,3.92948]
[1752098995129,0.72154,2770.9,2770.6,3.2078]
[1752098995332,0.72153,2770.9,2770.6,3.2078]
[1752098995626,2.24067009,2770.8,2770.4,0.72166]
[1752098995821,2.24067009,2770.8,2770.6,3.2078]
[1752098996026,2.24067009,2770.7,2770.6,3.2078]
[1752098996328,2.24067009,2770.7,2770.6,3.54630341]
[1752098996534,3.2078,2771.4,2770.6,3.54630341]
[1752098996726,0.72158,2770.8,2770.6,3.2078]
[1752098997227,2.24067009,2770.7,2770.6,3.2078]
[1752098997532,0.72162,2770.6,2770.3,3.2078]
[1752098997830,0.486989,2770.6,2770.4,0.33845227]
[1752098998030,0.486989,2770.6,2770.5,0.33845227]
[1752098998225,0.9344,2772.6,2770.8,3.2078]
[1752098998432,0.9344,2773.2,2773.1,0.72096]
[1752098998642,0.9344,2773.2,2773.1,3.54625227]
[1752098998830,0.9344,2773.2,2773.1,4.26721227]
[1752098999534,0.9344,2773.2,2773.1,3.92876]
[1752099000229,0.9344,2773.2,2773.1,3.2078]
[1752099000534,1.65533,2773.2,2773.1,3.2078]
[1752099001034,1.65533,2773.2,2772.8,3.2078]
[1752099001035,1.65535,2773.2,2772.8,3.2078]
[1752099001229,0.9344,2773.2,2772.8,3.2078]
[1752099001435,0.9344,2773.8,2773.1,3.2078]
[1752099001729,0.9344,2773.8,2773.7,0.7208]
[1752099001935,1.6833,2774.0,2773.9,0.72075]
[1752099002126,3.2078,2774.5,2774.4,0.72062]
[1752099002326,3.2078,2774.5,2773.6,3.2078]
[1752099002524,0.9344,2774.6,2773.6,3.2078]
[1752099002730,0.9344,2774.6,2774.0,3.2078]
[1752099002925,0.72064,2774.4,2774.0,3.92851]
[1752099003130,0.9344,2774.6,2774.1,0.72069]
[1752099003332,0.72061,2774.5,2774.2,0.72066]
[1752099003531,0.9344,2774.4,2774.0,3.2078]
[1752099003725,1.65506,2774.3,2774.0,3.2078]
[1752099003924,0.9344,2774.2,2774.0,3.2078]
[1752099004126,3.2078,2774.8,2774.0,3.92851]
[1752099004433,0.9344,2774.7,2774.0,3.2078]
[1752099004629,3.2078,2774.5,2773.6,3.2078]
[1752099004826,1.2511,2774.4,2773.6,3.2078]
[1752099005231,0.72074,2774.0,2773.7,0.72078]
[1752099005431,1.80164,2774.3,2773.6,3.2078]
[1752099005626,0.72079,2773.8,2773.5,0.72084]
[1752099005831,1.2785,2773.7,2773.5,0.72084]
[1752099006138,0.72074,2774.0,2773.7,0.72079]
[1752099006335,1.2785,2774.3,2773.6,3.92862]
[1752099006631,1.2785,2774.3,2773.6,3.2078]
[1752099006837,0.72077,2773.9,2773.6,3.2078]
[1752099007040,3.08013,2774.3,2773.6,3.2078]
[1752099007234,0.7208,2773.7,2773.6,3.2078]
[1752099007532,0.72091,2773.3,2773.2,3.2078]
[1752099008334,0.72091,2773.3,2772.6,0.72107]
[1752099008335,0.72105,2772.8,2772.5,2.02351]
[1752099008534,0.72105,2772.8,2772.7,3.2078]
[1752099009637,1.80228,2773.3,2772.7,3.2078]
[1752099009838,0.9803,2776.2,2774.4,3.2078]
[1752099010146,0.9803,2776.2,2776.1,3.2078]
[1752099010938,0.9803,2776.2,2776.1,3.92798]
[1752099012242,0.9803,2776.2,2776.1,3.2078]
[1752099012439,0.9803,2776.2,2776.1,3.92798]
[1752099012633,0.9803,2776.2,2776.1,3.2078]
[1752099012842,1.70045,2776.2,2776.1,3.2078]
[1752099013334,0.72026,2775.8,2775.7,3.2078]
[1752099013538,5.9803,2776.2,2775.7,3.2078]
[1752099013539,0.72022,2776.0,2775.7,3.2078]
[1752099013734,0.72022,2776.0,2775.7,3.92807]
[1752099013942,0.72019,2776.1,2775.8,1.80518217]
[1752099014135,0.9803,2776.2,2776.0,3.2078]
[1752099014344,0.72018,2776.1,2776.0,3.2078]
[1752099014543,0.9803,2776.2,2776.0,3.2078]
[1752099014743,1.70046,2776.2,2776.0,3.2078]
[1752099014939,3.2078,2776.7,2776.0,3.2078]
[1752099014940,1.70048,2776.1,2776.0,3.2078]
[1752099015439,7.41592493,2782.0,2776.0,3.2078]
[1752099015440,2.11594,2777.6,2776.0,8.2078]
[1752099015641,0.9803,2777.8,2777.5,3.2078]
[1752099015840,0.9803,2777.8,2776.2,3.60072]
[1752099015841,0.71987,2777.3,2777.2,3.2078]
[1752099016041,0.71989,2777.2,2777.1,3.2078]
[1752099016344,0.9803,2777.6,2777.1,3.2078]
[1752099016641,0.9803,2777.6,2776.5,1.80016]
[1752099016642,0.9803,2777.9,2777.4,3.2078]
[1752099016844,0.9803,2777.9,2776.6,1.2553]
[1752099016845,0.71988,2777.3,2777.2,3.2078]
[1752099017049,0.71986,2777.4,2777.2,3.2078]
[1752099017240,0.71982,2777.5,2777.2,3.92768]
[1752099017540,3.2078,2778.1,2777.2,3.2078]
[1752099017743,3.2078,2778.1,2776.6,1.2553]
[1752099017744,0.71979,2777.6,2777.5,3.2078]
[1752099017938,1.70009,2777.6,2777.5,3.2078]
[1752099018644,0.9803,2777.9,2777.5,3.2078]
[1752099018844,0.71971,2777.9,2777.8,3.2078]
[1752099019544,1.70001,2777.9,2777.8,3.2078]
[1752099022745,3.2078,2780.7,2778.8,3.2078]
[1752099023041,3.2078,2780.7,2777.8,8.01152302]
[1752099023042,0.7195,2778.7,2778.6,3.2078]
[1752099023241,0.7195,2778.7,2777.9,2.0359]
[1752099023242,0.9803,2778.7,2778.3,3.2078]
[1752099023545,1.6998,2778.7,2778.6,3.2078]
[1752099023847,0.7195,2778.7,2778.6,3.2078]
[1752099024248,0.9803,2779.2,2778.6,8.02248003]
[1752099024444,0.7194,2779.1,2779.0,3.2078]
[1752099024843,1.6997,2779.1,2779.0,3.2078]
[1752099026045,0.71962,2778.3,2777.9,4.93942583]
[1752099026252,0.71961,2778.3,2778.2,3.2078]
[1752099026845,0.9803,2778.3,2777.8,3.2078]
[1752099027046,0.9803,2778.2,2777.8,3.2078]
[1752099027247,0.71963,2778.2,2778.1,3.2078]
[1752099027547,1.799,2778.4,2778.1,3.2078]
[1752099027740,0.7909,2778.5,2778.2,3.2078]
[1752099027741,1.69991,2778.3,2778.2,3.2078]
[1752099027942,0.71961,2778.3,2778.2,3.2078]
[1752099028345,0.9803,2781.3,2779.1,3.2078]
[1752099028548,3.2078,2780.8,2780.0,3.2078]
[1752099028746,1.79772,2780.4,2779.6,3.2078]
[1752099028949,0.9803,2780.3,2780.1,3.2078]
[1752099029147,0.71907,2780.4,2780.1,3.2078]
[1752099029148,0.9803,2780.2,2780.1,3.2078]
[1752099029452,0.9803,2780.5,2780.1,3.2078]
[1752099029656,0.9803,2780.4,2780.1,3.2078]
[1752099029853,0.9803,2780.3,2780.1,3.2078]
[1752099030552,0.71908,2780.4,2780.1,3.2078]
[1752099030746,1.69938,2780.4,2780.1,3.2078]
[1752099030948,0.9803,2780.4,2780.1,3.2078]
[1752099031656,0.9803,2780.3,2780.1,3.2078]
[1752099031851,1.69942,2780.2,2780.1,3.2078]
[1752099032052,1.69942,2780.2,2779.7,0.71924]
[1752099032053,0.71919,2779.9,2779.8,3.2078]
[1752099032252,1.69949,2779.9,2779.8,3.2078]
[1752099032447,5.0,2779.9,2779.5,3.2078]
[1752099032660,5.0,2779.9,2779.1,3.2078]
[1752099032661,0.71939,2779.2,2779.1,3.2078]
[1752099033260,0.71938,2779.2,2779.1,3.2078]
[1752099033452,0.71938,2779.2,2779.1,8.02248003]
[1752099033657,0.9803,2779.9,2779.1,8.02248003]
[1752099033851,0.00786176,2779.9,2779.7,3.2078]
[1752099034064,0.9803,2780.5,2780.0,0.71916]
[1752099034360,0.9803,2780.5,2780.2,3.2078]
[1752099034554,0.9803,2780.5,2780.4,3.2078]
[1752099034755,0.71907,2780.4,2780.3,3.2078]
[1752099035452,1.69935,2780.5,2780.3,3.2078]
[1752099035854,0.71907,2780.4,2780.3,3.2078]
[1752099036957,5.0,2780.4,2779.7,3.2078]
[1752099037154,0.71922,2779.8,2779.7,3.2078]
[1752099037562,0.71921,2779.9,2779.7,5.03775236]
[1752099037759,1.79768,2780.4,2779.8,1.82995236]
[1752099037957,0.71922,2779.8,2779.7,3.2078]
[1752099038161,0.71922,2779.8,2779.7,5.03832233]
[1752099038355,1.79761,2780.5,2779.7,8.02248003]
[1752099038564,0.71922,2779.8,2779.7,8.02248003]
[1752099038761,0.71918,2780.0,2779.7,8.02248003]
[1752099039262,1.79767,2780.4,2779.7,8.74173003]
[1752099039571,0.71922,2779.8,2779.7,3.2078]
[1752099039864,0.71922,2779.8,2779.7,5.05311984]
[1752099040059,3.2078,2780.6,2779.7,10.83859987]
[1752099040265,1.79754,2780.6,2780.0,3.2078]
[1752099040468,0.71914,2780.1,2780.0,3.2078]
[1752099040761,0.71914,2780.1,2780.0,5.05439681]
[1752099040964,0.71914,2780.1,2780.0,3.2078]
[1752099041367,0.71914,2780.2,2780.0,3.2078]
[1752099041566,0.71914,2780.2,2780.1,1.84723789]
[1752099041766,0.71914,2780.1,2780.0,3.2078]
[1752099041967,0.71914,2780.1,2780.0,5.05518095]
[1752099042263,1.79795,2780.0,2779.3,4.1786]
[1752099042568,0.7193,2779.5,2779.4,1.84713874]
[1752099043167,5.7193,2779.5,2779.4,1.84713874]
[1752099043465,0.7193,2779.5,2779.4,1.84713874]
[1752099043868,0.71932,2779.4,2779.3,3.2078]
[1752099044064,0.71932,2779.4,2779.3,3.77043155]
[1752099044261,0.71932,2779.4,2779.3,6.14998322]
[1752099044461,0.71932,2779.4,2779.3,3.77043155]
[1752099044768,5.71932,2779.4,2779.3,3.77043155]
[1752099045068,5.71932,2779.4,2779.3,4.3028339]
[1752099045463,5.71932,2779.4,2779.3,3.2078]
[1752099045673,1.79846,2779.2,2778.8,3.2078]
[1752099045871,0.71943,2779.0,2778.9,2.92051425]
[1752099046171,0.71943,2779.0,2778.9,2.36621277]
[1752099046373,0.71943,2779.0,2778.9,1.83331566]
[1752099046572,2.01823,2779.0,2778.9,1.83331566]
[1752099046775,0.71943,2779.0,2778.9,2.38801677]
[1752099047071,0.71943,2779.0,2778.9,2.91467358]
[1752099047769,0.71943,2779.0,2778.9,1.83331566]
[1752099048273,0.71943,2779.0,2778.9,2.90344228]
[1752099048771,5.71943,2779.0,2778.5,3.2078]
[1752099048973,0.71953,2778.6,2778.5,3.2078]
[1752099049174,0.71953,2778.6,2778.5,3.75070853]
[1752099049670,1.3315,2778.9,2778.5,4.72150853]
[1752099049871,0.71949,2778.8,2778.6,0.54290853]
[1752099050174,1.3315,2779.1,2778.7,0.54290853]
[1752099050374,0.71947,2778.9,2778.8,0.54290853]
[1752099052969,1.7984,2779.3,2778.8,0.54290853]
[1752099053176,0.71943,2779.0,2778.9,0.54290853]
[1752099053366,0.71943,2779.0,2778.8,6.89266289]
[1752099053572,0.71945,2778.9,2778.8,4.81468003]
[1752099053775,0.71945,2778.9,2778.8,5.34987928]
[1752099054277,0.71945,2778.9,2778.8,7.44841645]
[1752099054472,0.71945,2778.9,2778.8,5.34987928]
[1752099054874,1.7984,2779.3,2778.8,7.45087437]
[1752099055080,0.71935,2779.3,2779.2,2.0999541]
[1752099055281,0.71935,2779.3,2779.2,3.68870834]
[1752099055576,0.71935,2779.3,2779.2,0.53519925]
[1752099056176,0.71935,2779.3,2779.2,3.68865002]
[1752099057485,0.71935,2779.3,2779.2,0.53519925]
[1752099057780,0.71935,2779.3,2779.2,2.64242451]
[1752099058074,0.71935,2779.3,2779.2,0.53718898]
[1752099059481,0.71935,2779.3,2779.2,0.87469455]
[1752099060377,1.68855,2779.3,2779.2,0.33750557]
[1752099060578,0.71935,2779.3,2779.2,3.6903948]
[1752099060883,0.71935,2779.3,2779.2,5.91783852]
[1752099061478,0.71935,2779.3,2779.2,5.91887485]
[1752099061978,0.71935,2779.3,2779.2,2.7582172]
[1752099064477,0.71935,2779.3,2779.2,4.86542518]
[1752099065180,0.71935,2779.3,2779.2,4.85532472]
[1752099065579,0.71935,2779.3,2779.2,4.85501645]
[1752099066784,0.71935,2779.3,2779.2,3.10901731]
[1752099066984,0.71935,2779.3,2779.2,4.84689258]
[1752099067178,0.71935,2779.3,2779.2,2.7396846]
[1752099067884,9.1882,2779.3,2778.6,2.10720798]
[1752099068085,0.71953,2778.6,2778.5,2.10720798]
[1752099068286,0.71953,2778.6,2778.5,0.33754009]
[1752099068485,0.71953,2778.6,2778.5,5.15222012]
[1752099068686,0.71953,2778.6,2778.5,4.81468003]
[1752099069587,0.71956,2778.5,2778.4,3.2078]
[1752099070482,0.8007,2779.0,2778.9,0.71945]
[1752099070681,0.71943,2779.0,2778.9,4.1188]
[1752099070881,0.71943,2779.0,2778.9,3.2078]
[1752099072183,1.79832,2779.4,2778.9,7.22178003]
[1752099072487,0.7194,2779.1,2779.0,2.1922]
[1752099072688,0.7194,2779.1,2779.0,5.4]
[1752099072877,0.7194,2779.1,2779.0,9.41398003]
[1752099073386,3.1031,2779.6,2779.0,9.41398003]
[1752099073581,0.71932,2779.4,2779.3,3.2078]
[1752099073782,4.421,2779.9,2779.3,3.2078]
[1752099073985,1.79781,2780.2,2779.6,3.2078]
[1752099074286,3.2078,2780.3,2779.9,3.2078]
[1752099074484,0.7191,2780.3,2779.9,3.2078]
[1752099074686,0.71911,2780.3,2780.0,1.2588]
[1752099074879,0.71913,2780.2,2780.0,1.2588]
[1752099075083,0.71911,2780.3,2780.0,5.27278003]
[1752099075280,1.79761,2780.5,2780.0,4.01398003]
[1752099075485,1.79761,2780.5,2779.9,3.2078]
[1752099075486,0.71917,2780.0,2779.9,3.2078]
[1752099075788,0.71925,2779.7,2779.6,1.2588]
[1752099075983,0.71925,2779.7,2779.6,5.61017534]
[1752099076188,0.71925,2779.7,2779.6,4.01398003]
[1752099076587,0.71922,2779.8,2779.6,4.01398003]
[1752099076788,4.4408,2780.2,2779.6,4.01398003]
[1752099076789,0.71925,2779.7,2779.6,4.01398003]
[1752099076989,0.71925,2779.7,2779.6,5.28848003]
[1752099077580,0.71925,2779.7,2779.6,4.01398003]
[1752099077786,0.71935,2779.3,2779.2,3.2078]
[1752099077982,0.71935,2779.3,2779.2,3.54523392]
[1752099078187,0.71935,2779.3,2779.2,3.54526441]
[1752099078387,0.71935,2779.3,2779.2,3.2078]
[1752099078788,0.71943,2779.0,2778.9,3.2078]
[1752099079291,0.71943,2779.0,2778.9,7.22178003]
[1752099079588,0.71943,2779.0,2778.9,8.13278003]
[1752099079785,0.71943,2779.0,2778.9,8.65098556]
[1752099080083,0.71943,2779.0,2778.9,11.5797118]
[1752099080286,0.71942,2779.1,2778.9,11.5797118]
[1752099080486,0.71942,2779.1,2779.0,3.11663177]
[1752099080687,0.71942,2779.1,2779.0,4.35793177]
[1752099080889,1.7983,2779.5,2779.0,8.3719118]
[1752099081086,0.38409341,2781.6,2781.0,1.79728]
[1752099081288,0.9874,2782.9,2781.7,0.71873]
[1752099081500,0.9874,2782.9,2781.7,3.83039545]
[1752099081793,28.3451,2783.0,2781.7,8.83039545]
[1752099082093,1.2011,2783.0,2781.7,10.21887343]
[1752099082386,1.91949,2783.0,2782.9,3.2078]
[1752099082587,1.2011,2783.0,2782.9,3.2078]
[1752099082782,1.2011,2783.0,2782.9,3.76291338]
[1752099082987,1.91949,2783.0,2782.9,3.76287853]
[1752099083286,1.2011,2783.0,2782.9,3.76287853]
[1752099083490,1.91949,2783.0,2782.9,3.76287853]
[1752099083691,1.91949,2783.0,2782.9,4.29708024]
[1752099084195,1.91949,2783.0,2781.7,3.90403798]
[1752099084196,3.2078,2782.9,2781.8,2.10720798]
[1752099084394,10.19354427,2783.0,2781.9,1.92282931]
[1752099084395,0.71865,2782.0,2781.9,1.92282931]
[1752099084697,1.0,2782.0,2781.9,1.92282931]
[1752099084887,0.71861,2782.2,2781.9,1.92282931]
[1752099084888,1.0,2782.1,2781.9,2.25995642]
[1752099085088,0.7186,2782.2,2782.0,5.13062931]
[1752099085286,0.7186,2782.2,2782.0,3.2078]
[1752099085490,0.7186,2782.2,2782.1,1.92112429]
[1752099086087,0.7187,2781.8,2781.7,3.2078]
[1752099086284,0.7187,2781.8,2781.7,1.92134449]
[1752099086485,0.71866,2782.0,2781.4,3.9732]
[1752099086693,0.71866,2782.0,2781.7,3.2078]
[1752099086889,0.71868,2781.9,2781.7,3.2078]
[1752099087085,0.71862,2782.2,2781.7,3.92652]
[1752099087285,4.4764,2782.6,2781.7,4.1188]
[1752099087488,6.27266,2782.6,2781.8,1.2365]
[1752099087690,4.4764,2782.6,2781.8,1.2365]
[1752099088290,4.4764,2782.6,2781.7,3.2078]